bitfinex/quotes_ETHUSD_20260314
["timestamp","ask_amount","ask_price","bid_price","bid_amount"]
[1773450971636,0.0012,2088.9,2088.7,0.47071099]
[1773450971855,0.0012,2088.9,2088.7,0.46991099]
[1773450972059,0.45245519,2088.8,2088.6,0.04618634]
[1773450972255,0.45245519,2088.8,2088.5,0.001]
[1773450972644,0.45245519,2088.8,2088.7,0.001]
[1773450972848,0.45245519,2088.7,2088.3,0.001]
[1773450973066,0.45445519,2088.7,2088.3,0.001]
[1773450975139,0.45245519,2088.5,2088.3,0.001]
[1773450977565,0.45245519,2088.3,2088.2,0.001]
[1773450978767,0.45245519,2088.3,2088.0,1.727]
[1773450978965,0.45245519,2088.3,2088.0,0.001]
[1773450980064,0.45245519,2088.1,2088.0,0.001]
[1773450982873,1.67656799,2088.2,2088.0,0.001]
[1773450987083,0.002,2088.1,2088.0,0.001]
[1773450991678,0.48136466,2088.1,2087.6,0.001]
[1773450991984,0.47936466,2087.7,2087.3,0.04648809]
[1773450992154,0.47936466,2087.7,2087.1,0.001]
[1773450994378,0.47936466,2087.5,2087.1,0.001]
[1773450996472,1.67702682,2087.4,2087.1,0.001]
[1773450998060,0.47936466,2087.4,2087.1,0.24020876]
[1773450998286,0.47936466,2087.4,2087.2,0.04791107]
[1773450998583,0.47936466,2087.4,2087.1,1.43802875]
[1773450998882,0.47936466,2087.4,2087.2,0.04791107]
[1773451000078,0.47936466,2087.4,2087.1,1.43802875]
[1773451000079,0.47936466,2087.4,2087.1,1.48594212]
[1773451000281,0.47936466,2087.4,2087.1,0.28812213]
[1773451000479,1.19777692,2087.2,2087.1,0.001]
[1773451000685,0.47936466,2087.2,2087.1,0.001]
[1773451000886,1.67707157,2087.4,2087.1,0.001]
[1773451001375,0.47936466,2087.3,2087.1,0.001]
[1773451010695,0.50078575,2087.5,2087.1,1.43804307]
[1773451010986,0.55040322,2087.5,2087.1,1.43804307]
[1773451012790,0.48496991,2087.4,2087.1,0.24020876]
[1773451013291,0.48496991,2087.4,2087.1,1.43802256]
[1773451013493,0.05061747,2087.5,2087.2,0.23920876]
[1773451013901,0.001,2087.5,2087.2,0.28711983]
[1773451014401,0.001,2087.5,2087.3,0.24030876]
[1773451015887,0.001,2087.5,2087.3,1.43802254]
[1773451016579,0.001,2087.5,2087.3,0.24030876]
[1773451018394,0.001,2087.5,2087.3,1.43798614]
[1773451019692,0.48496991,2087.9,2087.4,0.23820876]
[1773451019893,1.68235037,2087.9,2087.4,0.23820876]
[1773451020099,0.53458738,2087.8,2087.3,1.48489492]
[1773451020986,0.53458738,2087.8,2087.3,1.43698614]
[1773451021393,0.53458738,2087.8,2087.3,0.0011]
[1773451021595,0.48496991,2087.6,2087.3,0.0011]
[1773451024792,1.68252233,2087.6,2087.3,0.0011]
[1773451025092,0.48496991,2087.5,2087.3,0.0011]
[1773451026601,0.04961747,2087.6,2087.3,0.23930876]
[1773451026602,0.001,2087.4,2087.3,0.23930876]
[1773451026801,0.001,2087.4,2087.3,0.28721754]
[1773451027500,0.001,2087.4,2087.3,0.23930876]
[1773451028212,0.001,2087.4,2087.3,0.28721754]
[1773451028411,0.001,2087.4,2087.3,0.23930876]
[1773451035462,1.19737535,2087.9,2087.4,0.23720876]
[1773451035623,1.68234526,2087.9,2087.4,0.28511524]
[1773451036356,0.53458738,2087.8,2087.3,0.0011]
[1773451036559,0.53458738,2087.8,2087.3,1.7281]
[1773451036733,0.53458738,2087.8,2087.3,1.96530876]
[1773451037959,1.19749006,2087.7,2087.3,1.96530876]
[1773451038159,0.04961747,2087.6,2087.3,1.96530876]
[1773451038530,0.53458738,2087.6,2087.5,0.0011]
[1773451042347,0.04961747,2087.6,2087.5,0.0011]
[1773451042554,0.04961747,2087.6,2087.5,0.23830876]
[1773451046758,0.04961747,2087.6,2087.5,0.0011]
[1773451050843,1.65262412,2088.0,2087.6,0.23720876]
[1773451051251,1.65262412,2088.0,2087.6,0.23820876]
[1773451052575,0.002,2087.9,2087.6,0.23820876]
[1773451054000,0.002,2087.9,2087.6,1.43575255]
[1773451054160,0.002,2087.9,2087.7,0.23720876]
[1773451056385,0.002,2087.9,2087.6,0.23820876]
[1773451057155,0.002,2087.9,2087.6,0.28611065]
[1773451057874,0.002,2087.9,2087.7,0.23720876]
[1773451060051,0.45728699,2087.9,2087.6,0.001]
[1773451061863,0.45728699,2087.9,2087.6,0.23820876]
[1773451062050,0.45728699,2087.9,2087.6,0.28611065]
[1773451062255,0.002,2087.9,2087.6,0.28611065]
[1773451063174,0.002,2088.1,2087.7,0.23720876]
[1773451064986,0.002,2088.1,2087.8,0.23820876]
[1773451065384,0.002,2088.1,2087.8,0.28610606]
[1773451065587,0.002,2087.9,2087.8,0.28610606]
[1773451065792,0.002,2088.1,2087.8,0.28610606]
[1773451066386,0.49105235,2088.1,2087.8,0.28610606]
[1773451066772,0.002,2088.1,2087.8,0.28610606]
[1773451067084,0.002,2088.1,2087.8,1.48349265]
[1773451067470,0.49105235,2088.2,2087.9,0.23720876]
[1773451067471,0.002,2088.2,2087.9,0.23720876]
[1773451067670,0.49105235,2088.2,2087.9,0.23720876]
[1773451069904,0.002,2088.2,2087.9,1.43456506]
[1773451070083,0.002,2088.2,2088.0,0.23720876]
[1773451071994,0.002,2088.2,2088.0,1.43450526]
[1773451072784,0.49105235,2088.3,2088.0,1.43450526]
[1773451074382,0.002,2088.3,2088.0,1.43450526]
[1773451075006,0.47765849,2088.3,2088.0,1.43450526]
[1773451075385,0.47765849,2088.3,2088.0,1.48239798]
[1773451078112,0.47765849,2088.3,2088.1,0.001]
[1773451081811,0.47565849,2088.5,2088.1,0.46774415]
[1773451082114,0.47565849,2088.5,2088.1,1.66497976]
[1773451082319,0.47565849,2088.5,2088.2,0.46674415]
[1773451082814,0.0012,2088.9,2088.4,0.46674415]
[1773451083013,0.0012,2088.9,2088.1,1.19823561]
[1773451083014,1.67229088,2089.2,2088.6,0.46674415]
[1773451083390,1.67229108,2089.2,2088.6,0.46674415]
[1773451084419,1.67229108,2089.2,2088.8,0.46674415]
[1773451086500,1.67229108,2089.2,2088.8,1.66359775]
[1773451086797,0.47565849,2089.2,2088.8,1.66359775]
[1773451089312,0.47565849,2089.2,2088.9,0.46674415]
[1773451090125,1.67221625,2089.4,2088.9,0.46674415]
[1773451090497,0.47565849,2089.3,2088.9,0.46674415]
[1773451091397,0.47565849,2089.3,2088.9,1.66353213]
[1773451091599,0.002,2089.0,2088.9,1.66353213]
[1773451091802,0.47565849,2089.3,2088.9,1.66353213]
[1773451092318,0.002,2089.2,2088.9,1.66353213]
[1773451099359,0.002,2089.2,2089.0,0.51461394]
[1773451099635,1.67415055,2089.5,2089.1,0.46674415]
[1773451099800,0.47565849,2089.4,2089.1,0.46674415]
[1773451100002,0.002,2089.5,2089.1,1.6634239]
[1773451100237,0.47765849,2089.5,2089.2,0.46674415]
[1773451100907,0.47765849,2089.5,2088.9,0.46674415]
[1773451101334,0.47765849,2089.5,2088.9,1.66353935]
[1773451102129,0.47765849,2089.5,2088.9,0.46674415]
[1773451102309,0.47822298,2089.3,2088.9,0.46674415]
[1773451102711,0.47822298,2089.3,2088.8,0.001]
[1773451103816,0.47822298,2089.3,2088.6,1.19697184]
[1773451104517,0.47822298,2089.1,2088.6,1.19697184]
[1773451104718,0.47822298,2089.1,2088.8,0.001]
[1773451105120,0.48022298,2089.1,2088.8,0.001]
[1773451107438,0.47822298,2089.0,2088.8,0.001]
[1773451108712,0.47822298,2089.0,2088.5,0.001]
[1773451109642,1.19680214,2088.9,2088.5,0.001]
[1773451109943,4.78714919,2089.0,2088.5,0.001]
[1773451109944,0.47822298,2089.0,2088.5,0.51897449]
[1773451110769,0.002,2089.1,2088.7,0.47009324]
[1773451110930,0.002,2089.1,2088.9,0.47009324]
[1773451111627,0.002,2089.3,2089.1,0.47009324]
[1773451118169,0.002,2089.3,2089.1,0.47109324]
[1773451134182,0.46994309,2089.3,2089.1,0.001]
[1773451136992,0.002,2089.3,2089.1,0.001]
[1773451137164,0.002,2089.3,2089.1,0.49043617]
[1773451139872,1.19631563,2089.8,2089.3,0.48943617]
[1773451140073,1.66417735,2089.9,2089.3,0.48943617]
[1773451140577,0.46794309,2089.8,2089.3,0.48943617]
[1773451140757,0.46794309,2089.8,2089.4,0.48943617]
[1773451141172,1.66423525,2089.8,2089.4,1.68595087]
[1773451141573,1.66423525,2089.8,2089.5,0.48943617]
[1773451141769,1.19629216,2089.8,2089.5,0.48943617]
[1773451146886,0.002,2089.6,2089.5,0.48943617]
[1773451149104,0.002,2089.6,2089.5,1.68589465]
[1773451149503,0.002,2089.6,2089.5,0.48943617]
[1773451150404,0.002,2089.6,2089.5,0.5372945]
[1773451151767,0.46794309,2089.9,2089.6,0.48943617]
[1773451152095,1.66414364,2090.0,2089.6,0.48943617]
[1773451152395,5.02392167,2090.2,2089.7,0.48943617]
[1773451152396,0.46794309,2090.1,2089.7,0.48943617]
[1773451152896,1.66404201,2090.2,2089.7,0.48943617]
[1773451154093,1.6640043,2090.2,2089.8,0.48943617]
[1773451154288,1.19605819,2090.2,2089.8,0.48943617]
[1773451154679,1.66400128,2090.2,2089.8,0.48943617]
[1773451156501,0.46794309,2090.1,2089.6,1.68580036]
[1773451156898,0.46794309,2090.1,2089.7,0.48943617]
[1773451158180,0.46794309,2090.1,2089.5,1.68585606]
[1773451158181,0.46794309,2090.0,2089.5,1.68585606]
[1773451158382,0.46794309,2090.0,2089.5,1.68589068]
[1773451158581,0.46794309,2090.0,2089.5,0.48943617]
[1773451158794,0.46794309,2090.0,2089.3,3.41697311]
[1773451158997,0.46794309,2090.0,2089.3,2.22043617]
[1773451159183,0.46794309,2090.0,2089.3,3.41699392]
[1773451159708,0.46794309,2090.0,2089.4,0.53729679]
[1773451160093,1.6641454,2090.0,2089.5,1.19645848]
[1773451160298,1.6641454,2090.0,2089.6,0.53729221]
[1773451160809,0.46794309,2089.9,2089.4,1.733767]
[1773451161812,0.46794309,2089.9,2089.4,0.48943617]
[1773451162017,0.46794309,2089.9,2089.5,0.001]
[1773451162316,0.49809988,2089.7,2089.5,0.001]
[1773451165823,0.49809988,2089.5,2089.1,0.001]
[1773451165985,0.49809988,2089.7,2089.2,0.49483459]
[1773451166310,0.49809988,2089.7,2089.4,0.49483459]
[1773451166906,0.002,2089.8,2089.5,0.54269292]
[1773451170111,0.002,2089.8,2089.5,1.73911304]
[1773451170414,0.002,2089.8,2089.6,0.49483459]
[1773451170719,0.002,2089.8,2089.7,0.54268834]
[1773451172813,0.002,2089.8,2089.7,0.04785375]
[1773451173315,0.002,2089.8,2089.6,1.69121773]
[1773451174309,0.002,2089.8,2089.7,0.04785375]
[1773451181799,0.002,2089.8,2089.7,0.54268834]
[1773451182314,0.50009988,2089.8,2089.5,0.001]
[1773451183029,0.50009988,2089.8,2089.3,0.001]
[1773451184424,0.49809988,2089.6,2089.3,0.001]
[1773451186432,1.69451915,2089.6,2089.3,0.001]
[1773451186626,0.4970374,2089.5,2089.3,0.001]
[1773451190138,0.4970374,2089.4,2089.1,0.001]
[1773451190307,0.4970374,2089.4,2089.1,1.19768139]
[1773451190514,0.4970374,2089.5,2089.1,1.67165099]
[1773451190714,0.4970374,2089.5,2089.1,1.24554889]
[1773451191037,0.4970374,2089.5,2089.2,0.4739696]
[1773451191231,0.4970374,2089.5,2089.2,1.67058711]
[1773451191536,0.002,2089.6,2089.3,0.54695331]
[1773451192104,0.47085087,2089.6,2089.3,0.54695331]
[1773451194219,0.002,2089.6,2089.4,0.49809039]
[1773451195613,0.002,2089.6,2089.5,3.41554887]
[1773451202835,0.002,2089.6,2089.5,1.721]
[1773451203135,0.47085087,2089.6,2089.5,1.721]
[1773451204242,0.002,2089.6,2089.5,2.91745848]
[1773451204444,0.002,2089.6,2089.5,2.91845848]
[1773451204761,0.002,2089.6,2089.5,1.722]
[1773451205629,0.002,2089.6,2089.5,2.91845848]
[1773451206811,0.002,2089.6,2089.5,1.722]
[1773451208345,0.47085087,2089.6,2089.5,1.722]
[1773451208542,0.47085087,2089.6,2089.3,1.19756924]
[1773451208841,0.47005087,2089.6,2089.3,1.19676924]
[1773451209640,0.47005087,2089.6,2089.3,2.92276924]
[1773451210853,0.46885087,2089.5,2089.3,1.7262]
[1773451211161,0.46885087,2089.5,2089.3,2.92276217]
[1773451216733,0.46885087,2089.5,2089.3,2.97062509]
[1773451217723,0.0012,2089.6,2089.4,0.49809039]
[1773451219657,0.0012,2089.6,2089.5,0.001]
[1773451220840,0.002,2090.0,2089.6,0.49809039]
[1773451221150,0.46885087,2090.4,2089.5,0.04885833]
[1773451221151,0.45287767,2090.3,2089.7,0.49809039]
[1773451221349,0.50273157,2090.3,2089.8,1.739]
[1773451221750,0.50273157,2090.3,2089.8,2.93523125]
[1773451222355,0.45287767,2090.2,2089.8,2.93523125]
[1773451223647,0.45287767,2090.2,2089.9,0.46432515]
[1773451224253,0.45287767,2090.2,2090.0,1.19617224]
[1773451224748,1.69667607,2090.4,2090.0,1.66049739]
[1773451224956,0.002,2090.3,2090.1,0.46432515]
[1773451227631,0.002,2090.3,2090.1,1.66043444]
[1773451229190,0.45287767,2090.4,2090.1,1.66043444]
[1773451229328,0.45287767,2090.7,2090.2,0.46432515]
[1773451229729,0.45287767,2090.5,2090.1,1.19610929]
[1773451230264,0.45287767,2090.5,2090.1,1.66043444]
[1773451231380,0.45287767,2090.5,2089.8,6.5241208]
[1773451231381,0.45487767,2090.4,2089.9,0.46432515]
[1773451231566,0.45487767,2090.4,2090.0,0.04784688]
[1773451231746,0.45487767,2090.4,2090.0,0.51217203]
[1773451232383,0.002,2090.3,2090.0,0.51217203]
[1773451232749,0.45487767,2090.3,2090.0,0.51217203]
[1773451233352,0.45487767,2090.3,2090.0,1.70829494]
[1773451236483,0.45687767,2090.3,2090.0,1.70829494]
[1773451236981,0.45687767,2090.3,2090.0,1.66044806]
[1773451237880,0.45687767,2090.3,2090.1,0.0478446]
[1773451238051,0.45687767,2090.3,2090.0,1.66044806]
[1773451238378,0.45487767,2090.3,2090.0,1.66044806]
[1773451239861,0.45487767,2090.3,2090.1,0.0478446]
[1773451241166,0.45487767,2090.3,2090.0,1.66044806]
[1773451241364,0.45687767,2090.3,2090.0,0.46432515]
[1773451241566,0.45487767,2090.2,2089.9,1.19617517]
[1773451242195,0.45487767,2090.1,2089.8,1.739]
[1773451242370,0.45287767,2090.1,2089.8,1.739]
[1773451243003,0.45287767,2089.9,2089.5,1.70964191]
[1773451243314,0.45487767,2090.2,2089.6,0.46432515]
[1773451243481,0.002,2090.1,2089.8,0.46432515]
[1773451243687,0.002,2090.2,2089.9,1.7084038]
[1773451243922,0.002,2090.2,2090.0,0.46432515]
[1773451244072,0.004,2090.3,2090.1,0.51216975]
[1773451245009,0.004,2090.3,2090.1,0.51316975]
[1773451245575,0.004,2090.3,2090.1,1.70925202]
[1773451246212,0.48269804,2090.3,2090.1,0.0488446]
[1773451246421,0.48069804,2090.2,2090.1,0.001]
[1773451246897,0.002,2090.2,2090.1,0.001]
[1773451249664,0.48069804,2090.3,2090.1,0.001]
[1773451249958,0.002,2090.2,2090.1,0.001]
[1773451250734,0.48069804,2090.2,2090.1,0.001]
[1773451251341,0.002,2090.2,2090.1,0.0488446]
[1773451251747,0.002,2090.2,2090.1,0.50474759]
[1773451252374,0.002,2090.2,2090.1,0.0488446]
[1773451257670,0.0478539,2090.8,2090.2,0.45590299]
[1773451257837,0.45716798,2091.2,2090.2,0.45590299]
[1773451258164,0.50502188,2091.1,2090.2,0.45590299]
[1773451259029,0.45716798,2090.9,2090.2,1.65195801]
[1773451259351,0.45716798,2090.7,2090.2,1.65195801]
[1773451259553,0.45716798,2090.5,2090.2,1.65194491]
[1773451259947,0.45716798,2090.5,2090.3,0.04784002]
[1773451261157,0.45716798,2090.5,2090.3,1.24383004]
[1773451261342,0.45716798,2090.4,2090.3,1.19599002]
[1773451261862,0.45716798,2090.4,2090.2,0.001]
[1773451262540,0.45716798,2090.4,2090.2,1.19703908]
[1773451263867,0.45716798,2090.4,2090.2,0.001]
[1773451264068,5.9852061,2090.5,2090.2,0.45690299]
[1773451264239,5.9852061,2090.5,2090.2,0.5047453]
[1773451264772,6.44237408,2090.5,2090.2,0.5047453]
[1773451265209,6.44237408,2090.5,2090.2,0.45690299]
[1773451265904,6.44237408,2090.5,2090.0,2.94511501]
[1773451265905,0.45716798,2090.3,2090.0,1.749]
[1773451266200,0.45716798,2090.3,2089.7,1.19731584]
[1773451266496,0.45716798,2090.1,2089.7,1.19731584]
[1773451267271,0.45716798,2090.1,2089.7,2.94531584]
[1773451270295,0.45716798,2090.0,2089.7,1.749]
[1773451270498,0.45716798,2089.9,2089.7,1.749]
[1773451270693,0.45716798,2089.9,2089.7,2.94533277]
[1773451274605,1.1960902,2090.2,2089.7,2.94533277]
[1773451274811,0.45716798,2090.1,2089.7,3.40123576]
[1773451275195,0.45716798,2090.1,2089.9,0.001]
[1773451275404,0.50502188,2090.1,2089.9,0.001]
[1773451277503,0.45716798,2090.0,2089.9,0.001]
[1773451277682,0.45716798,2090.0,2089.7,1.749]
[1773451277887,0.45716798,2089.8,2089.7,1.749]
[1773451282951,0.4601595,2089.7,2089.5,0.001]
[1773451283176,0.4601595,2089.7,2089.4,1.19749006]
[1773451283337,6.4393656,2089.7,2089.4,1.19749006]
[1773451283540,0.0478539,2089.9,2089.5,0.49279022]
[1773451283749,5.9792061,2089.8,2089.5,0.49279022]
[1773451284868,6.4393656,2089.8,2089.5,0.49279022]
[1773451288465,5.10347605,2089.7,2089.6,1.68919144]
[1773451288649,5.10347605,2089.9,2089.7,0.49279022]
[1773451288843,5.10347605,2089.9,2089.7,0.54064397]
[1773451290037,5.10347605,2089.9,2089.7,0.49279022]
[1773451290237,5.10347605,2089.9,2089.7,0.49379022]
[1773451290450,0.5080134,2090.2,2089.9,0.49279022]
[1773451290667,5.10347605,2090.1,2089.9,0.49279022]
[1773451292570,0.5100134,2090.2,2089.9,0.49279022]
[1773451292571,0.0498539,2090.2,2090.0,0.49279022]
[1773451292760,0.002,2090.2,2090.0,0.49279022]
[1773451292967,0.002,2090.2,2090.1,2.25379022]
[1773451294877,0.002,2090.2,2090.1,3.44990523]
[1773451300275,0.002,2090.2,2090.1,2.95711501]
[1773451300476,5.56563555,2090.2,2090.1,2.95711501]
[1773451300675,5.56563555,2090.2,2090.1,1.761]
[1773451301265,5.56563555,2090.2,2090.1,2.95711501]
[1773451301584,5.56563555,2090.2,2090.1,1.761]
[1773451303173,5.56563555,2090.2,2090.1,2.95711501]
[1773451306502,5.10547605,2090.2,2090.1,3.41562248]
[1773451307290,0.48350985,2090.4,2090.1,3.41562248]
[1773451308092,0.002,2090.4,2090.2,0.45850747]
[1773451310299,0.002,2090.4,2090.2,1.65454873]
[1773451311387,0.002,2090.4,2090.3,0.47152018]
[1773451312789,0.002,2090.5,2090.4,0.47152018]
[1773451314783,0.002,2090.5,2090.4,1.66746354]
[1773451314969,0.48126151,2090.9,2090.5,0.47152018]
[1773451315170,0.48126151,2090.9,2090.6,2.24352018]
[1773451316800,0.48126151,2090.9,2090.6,2.96780615]
[1773451319002,0.002,2090.7,2090.6,2.96780615]
[1773451319767,0.002,2090.7,2090.6,3.43932633]
[1773451321796,0.002,2090.9,2090.6,2.96780615]
[1773451321978,0.48326151,2090.9,2090.6,2.96780615]
[1773451323204,0.48326151,2090.9,2090.6,3.43932633]
[1773451325078,0.002,2090.9,2090.7,1.667247]
[1773451325278,0.002,2090.9,2090.7,0.47152018]
[1773451325478,0.48326151,2090.9,2090.6,3.48713856]
[1773451325697,0.002,2090.9,2090.6,3.48713856]
[1773451325889,0.48326151,2090.9,2090.6,3.48713856]
[1773451326709,0.002,2090.9,2090.7,0.47152018]
[1773451326908,0.48126151,2091.2,2090.7,0.47152018]
[1773451327216,0.0478539,2091.3,2090.8,1.19571455]
[1773451327382,0.0478539,2091.3,2090.9,0.47152018]
[1773451327586,0.52911541,2091.3,2091.0,1.776]
[1773451327922,0.0478539,2091.3,2091.1,0.47152018]
[1773451328209,0.48126151,2091.7,2091.1,0.47152018]
[1773451329422,0.48126151,2091.7,2091.3,0.47152018]
[1773451329809,0.43126151,2091.7,2091.3,0.47152018]
[1773451330678,0.48126151,2091.6,2091.0,2.97157153]
[1773451330907,0.48126151,2091.4,2091.0,1.776]
[1773451331108,0.48126151,2091.4,2091.0,2.97159343]
[1773451331606,0.48126151,2091.4,2091.0,3.44311361]
[1773451331905,0.48126151,2091.4,2091.0,2.97159343]
[1773451332206,0.48126151,2091.3,2091.0,1.776]
[1773451333709,0.48126151,2091.2,2091.0,1.776]
[1773451333914,0.48126151,2091.2,2091.0,1.576]
[1773451334809,1.19734777,2091.5,2091.0,2.81942388]
[1773451335013,1.67860928,2091.5,2091.1,0.47152018]
[1773451335210,0.48326151,2091.5,2091.1,0.47152018]
[1773451335587,0.002,2091.5,2091.2,0.47152018]
[1773451335789,0.002,2091.5,2091.0,6.40609732]
[1773451335790,0.48326151,2091.5,2091.0,3.2908938]
[1773451335991,0.48126151,2091.3,2091.0,1.576]
[1773451338219,0.48126151,2091.2,2091.0,1.576]
[1773451341002,1.67678833,2091.2,2091.0,1.576]
[1773451341615,0.48126151,2091.2,2091.0,1.576]
[1773451343921,1.676748,2091.2,2091.0,1.576]
[1773451344222,0.48126151,2091.2,2091.0,1.576]
[1773451346406,1.65092594,2091.2,2091.0,1.576]
[1773451347003,0.45542752,2091.2,2091.0,1.576]
[1773451349517,1.6509466,2091.2,2091.0,1.576]
[1773451349832,0.45542752,2091.2,2091.0,1.576]
[1773451350009,0.45742752,2091.2,2091.0,1.576]
[1773451350211,0.002,2091.2,2091.0,1.576]
[1773451350410,0.002,2091.2,2091.0,1.623824]
[1773451351334,0.002,2091.2,2091.0,1.576]
[1773451351512,0.45742752,2091.2,2091.0,1.576]
[1773451365538,0.45742752,2091.2,2091.0,1.577]
[1773451366452,0.45680536,2091.1,2091.0,1.577]
[1773451366762,0.45880536,2091.2,2091.0,1.577]
[1773451369048,1.65429146,2091.2,2091.0,1.577]
[1773451370539,0.002,2091.2,2091.0,1.577]
[1773451370749,1.19749761,2091.2,2091.0,1.577]
[1773451371867,1.68373959,2091.2,2091.0,1.577]
[1773451375145,0.48824198,2091.2,2091.0,1.577]
[1773451376160,1.68375825,2091.2,2090.9,0.474136]
[1773451377271,0.48824198,2091.2,2090.9,0.474136]
[1773451378036,0.002,2091.2,2090.9,0.474136]
[1773451378347,0.002,2091.2,2091.0,0.48125629]
[1773451378744,0.002,2091.2,2091.0,1.6768501]
[1773451378944,0.002,2091.2,2091.1,0.48125629]
[1773451379356,0.002,2091.2,2091.0,1.6768501]
[1773451380466,0.002,2091.2,2091.0,0.48125629]
[1773451380674,0.002,2091.2,2091.1,0.001]
[1773451383342,0.48824198,2091.2,2091.1,0.001]
[1773451388877,0.002,2091.2,2091.1,0.001]
[1773451395947,0.48824198,2091.2,2091.1,0.001]
[1773451396146,0.48824198,2091.2,2090.9,1.67790625]
[1773451396147,0.48824198,2091.0,2090.9,0.001]
[1773451397177,1.68384217,2091.0,2090.9,0.001]
[1773451397781,0.48824198,2091.0,2090.9,0.001]
[1773451397968,0.002,2091.2,2090.9,0.48225629]
[1773451401086,0.002,2091.2,2090.9,1.67791078]
[1773451401669,0.002,2091.2,2091.0,0.45699399]
[1773451402460,0.002,2091.2,2091.0,1.65259149]
[1773451402986,0.002,2091.2,2091.0,0.45699399]
[1773451403863,0.4616086,2091.2,2090.9,1.19664702]
[1773451409692,0.4616086,2091.2,2090.9,1.65364101]
[1773451410392,1.19511904,2091.9,2091.0,0.45699399]
[1773451410707,0.0478539,2091.7,2091.0,0.45699399]
[1773451411375,0.0478539,2091.7,2091.2,0.45699399]
[1773451411690,0.0478539,2091.7,2091.4,0.45699399]
[1773451412259,0.0478539,2091.7,2091.5,1.19531436]
[1773451412482,0.0478539,2091.7,2091.5,1.65230835]
[1773451413793,0.0478539,2091.7,2091.4,1.19532937]
[1773451413973,0.5074625,2091.7,2091.4,2.97832937]
[1773451416772,0.4596086,2091.7,2091.4,2.97832937]
[1773451418405,0.07286153,2091.7,2091.4,2.97832937]
[1773451418995,0.4596086,2091.5,2091.1,2.24099399]
[1773451419596,0.4596086,2091.5,2091.1,1.784]
[1773451419786,0.4596086,2091.5,2091.2,0.45699399]
[1773451421507,0.4596086,2091.5,2091.2,1.65247469]
[1773451423783,0.0478539,2091.6,2091.1,2.97949749]
[1773451423784,0.5074625,2091.4,2091.1,2.97949749]
[1773451425277,0.5074625,2091.4,2091.1,3.43649148]
[1773451428202,0.5074625,2091.4,2091.1,1.65349148]
[1773451428408,0.5074625,2091.4,2091.1,2.98049749]
[1773451428908,0.5074625,2091.4,2091.1,1.785]
[1773451429576,0.5074625,2091.4,2091.1,2.98053832]
[1773451431407,0.5074625,2091.4,2091.1,3.44156134]
[1773451432111,0.4596086,2091.4,2091.1,3.44156134]
[1773451432688,0.4596086,2091.4,2091.1,0.001]
[1773451432689,0.51005443,2091.3,2091.1,0.001]
[1773451432877,0.46220053,2091.3,2090.9,1.19665587]
[1773451433082,0.50905443,2091.2,2090.9,1.70550518]
[1773451433315,0.46220053,2091.2,2090.9,1.70550518]
[1773451433479,0.002,2091.5,2091.0,0.46102302]
[1773451433681,0.002,2091.5,2091.2,0.46102302]
[1773451438688,0.0468539,2091.4,2091.2,0.46102302]
[1773451440393,0.0468539,2091.4,2091.3,0.001]
[1773451441096,0.46220053,2091.3,2091.0,0.001]
[1773451441416,0.46140053,2091.3,2091.0,0.001]
[1773451441718,0.46140053,2091.3,2091.0,0.0002]
[1773451442587,0.50839901,2091.2,2091.0,0.0002]
[1773451444315,0.0468539,2091.1,2091.0,0.0002]
[1773451444506,0.50839901,2091.1,2091.0,0.0002]
[1773451447029,0.46154511,2091.1,2091.0,0.0002]
[1773451447528,0.002,2091.5,2091.1,0.46102302]
[1773451447693,1.19720025,2091.7,2091.1,0.46102302]
[1773451448092,0.46354511,2091.7,2091.1,0.46102302]
[1773451449928,1.6587479,2091.7,2091.3,0.46102302]
[1773451451114,1.6587479,2091.7,2091.1,4.78202547]
[1773451451115,0.46154511,2091.6,2091.1,1.65653375]
[1773451451315,0.46154511,2091.6,2091.1,3.41153375]
[1773451451716,0.46154511,2091.6,2091.1,1.65653375]
[1773451452016,0.46154511,2091.5,2091.1,1.65653375]
[1773451455432,0.46154511,2091.5,2091.2,0.001]
[1773451455800,0.002,2091.3,2091.2,0.001]
[1773451464053,0.45504021,2091.3,2090.8,1.1967045]
[1773451464215,0.45504021,2091.3,2090.8,1.65235491]
[1773451464417,0.002,2091.3,2090.9,0.5034767]
[1773451464922,0.002,2091.3,2091.1,0.45565041]
[1773451466552,0.002,2091.3,2091.2,0.45565041]
[1773451468746,0.002,2091.5,2091.3,0.45565041]
[1773451470544,0.002,2091.5,2091.4,0.001]
[1773451473950,0.002,2091.5,2091.4,0.45665041]
[1773451478955,0.002,2091.5,2091.4,0.45765041]
[1773451479535,0.45504021,2091.5,2091.4,0.002]
[1773451479933,0.002,2091.5,2091.4,0.002]
[1773451488137,1.65026911,2091.7,2091.5,0.45002521]
[1773451488138,0.002,2091.7,2091.5,0.45002521]
[1773451493541,0.002,2091.7,2091.6,0.001]
[1773451493740,0.002,2091.7,2091.6,0.4844973]
[1773451493998,0.45712874,2092.9,2091.7,0.4834973]
[1773451494142,0.45712874,2092.9,2091.7,0.4844973]
[1773451494342,0.45712874,2092.7,2091.7,0.4844973]
[1773451495268,0.45712874,2092.5,2091.7,0.001]
[1773451495752,0.45712874,2092.3,2091.7,0.4844973]
[1773451497656,1.65197077,2092.4,2091.9,0.4834973]
[1773451498075,1.65190372,2092.5,2092.1,0.4834973]
[1773451501774,0.002,2092.3,2092.1,0.4834973]
[1773451501966,5.94188886,2093.1,2092.2,0.4844973]
[1773451501967,1.65180148,2092.7,2092.2,0.4844973]
[1773451502680,0.002,2092.6,2092.2,0.4844973]
[1773451502852,0.002,2092.6,2092.3,0.4834973]
[1773451503253,0.002,2092.6,2092.4,0.4844973]
[1773451506052,1.19460534,2092.8,2092.5,0.4834973]
[1773451507551,1.19455623,2092.9,2092.6,0.4844973]
[1773451507772,1.19455623,2092.9,2092.6,0.4834973]
[1773451507991,0.45760042,2092.9,2092.4,0.4834973]
[1773451508752,0.45760042,2092.7,2092.5,0.001]
[1773451510766,1.65228645,2092.6,2092.5,0.001]
[1773451511476,0.45760042,2092.5,2092.1,0.4834973]
[1773451512058,0.45760042,2092.5,2091.7,0.001]
[1773451512261,0.45760042,2092.3,2091.7,0.001]
[1773451512795,1.19491444,2092.2,2091.7,0.001]
[1773451512960,0.45760042,2092.1,2091.7,0.001]
[1773451514675,0.45760042,2092.1,2091.9,0.001]